[Event "Reykjavik Open 2025"]
[Site "Reykjavik"]
[Date "2025.04.14"]
[Round "8.9"]
[White "Ivic, Velimir"]
[Black "Song, Yuxin"]
[Result "1-0"]
[Annotator "TA"]
[ECO "A50"]
[WhiteElo "2623"]
[BlackElo "2371"]
[PlyCount "137"]
[EventDate "2025.04.09"]
[EventType "swiss"]
[EventCountry "ISL"]
[SourceTitle "playchess.com"]
[Source "ChessBase"]
[SourceQuality "1"]
[TimeControl "40/5400+30:1800+30"]

{[%evp 9,137,-11,-3,-6,6,7,5,-5,14,-16,14,-12,4,6,15,18,16,15,13,13,12,12,10,21,14,17,6,10,22,18,52,37,46,43,62,0,41,-21,0,0,-1,-4,13,-20,39,0,28,16,40,33,44,46,41,44,54,37,74,35,41,35,47,45,42,39,83,45,106,116,111,31,61,29,21,0,45,36,57,37,25,0,76,78,74,29,22,18,20,46,25,22,52,40,52,49,50,46,111,127,123,105,108,62,95,57,59,62,54,55,72,85,82,75,453,453,420,420,839,820,29993,-29990,29994,29995,29995,29996,29996,29997,29997,29998,29998,29999]} 1. d4 {[%emt 0:00:08]} Nf6 {[%emt 0:00:05]} 2. c4 {[%emt 0:00:09]} e6 {[%emt 0:00:04]} 3. Bf4 {[%emt 0:00:18]} Bb4+ {[%emt 0:00:35]} 4. Nd2 {[%emt 0:00:32]} c5 {[%emt 0:00:05]} 5. dxc5 {[%emt 0:00:43]} Bxc5 {[%emt 0:00:04]} 6. e3 {[%emt 0:00:28] A50: Queen's Fianchetto Defence (1 d4 Nf6 2 c4 b6).} Nc6 {[%emt 0:00:06]} 7. Ngf3 {[%emt 0:01:03]} O-O {[%emt 0:00:06]} 8. Be2 {[%emt 0:02:40] The position is equal.} Re8 $146 {[%emt 0:10:08]} (8... d5 9. O-O b6 10. cxd5 Nxd5 11. Bg3 Bxe3 12. fxe3 Nxe3 13. Qa4 Nxf1 14. Bxf1 Bb7 {1-0 Praggnanandhaa,R (2688)-Suleymanli,A (2549) Wch Rapid New York 2024 (8)}) 9. h3 {[%emt 0:07:07]} b6 {[%emt 0:09:48]} 10. a3 {[%emt 0:03:02]} Bb7 {[%emt 0:07:27]} 11. O-O {[%emt 0:01:26]} h6 {[%emt 0:03:48]} 12. Bg3 {[%emt 0:01:21]} Rc8 {[%emt 0:03:33]} 13. Rc1 {[%emt 0:02:44]} Be7 {[%emt 0:05:41]} 14. Qa4 {[%emt 0:02:53]} d6 {[%emt 0:02:11]} 15. Rfd1 {[%emt 0:02:02]} Qd7 {[%emt 0:03:35][%cal Oc6d4] and ...Nd4! would now be decisive} 16. Qc2 {[%emt 0:03:09]} Red8 {[%emt 0:00:31]} 17. b4 {[%emt 0:04:48]} Qe8 {[%emt 0:02:48]} 18. Qb1 {[%emt 0:02:33]} Nb8 {[%emt 0:04:23]} 19. Nd4 {[%emt 0:03:25]} Nc6 {[%emt 0:01:52]} 20. Nb5 {[%emt 0:03:58]} a6 {[%emt 0:01:34]} 21. Nc3 {[%emt 0:00:46]} Ne5 {[%emt 0:02:42]} 22. f4 {[%emt 0:15:11]} (22. c5 Nfd7 23. cxd6 Bxd6 24. Nde4) 22... Ng6 {[%emt 0:06:26]} 23. Bd3 {[%emt 0:05:04]} (23. e4 $14) 23... Rc7 {[%emt 0:08:55]} 24. Ne2 {[%emt 0:05:03]} Bf8 {[%emt 0:03:13]} 25. Bf2 {[%emt 0:08:19]} Rdc8 {[%emt 0:03:25]} 26. e4 {[%emt 0:02:51]} Nd7 {[%emt 0:00:02]} (26... b5 $11) 27. Nf3 {[%emt 0:03:55]} Be7 {[%emt 0:05:25]} 28. Qb2 {[%emt 0:02:35]} Bf6 {[%emt 0:01:00]} 29. Qd2 {[%emt 0:00:15]} Ngf8 {[%emt 0:02:32]} 30. Ng3 {[%emt 0:01:09]} Nh7 {[%emt 0:00:54]} 31. Re1 {[%emt 0:05:58]} Be7 {[%emt 0:00:15]} 32. Rcd1 {[%emt 0:00:57]} Ra8 {[%emt 0:02:33]} 33. Qe2 {[%emt 0:01:06]} (33. e5 dxe5 34. fxe5 a5 35. Nd4) 33... a5 {[%emt 0:02:29]} 34. Nd4 {[%emt 0:02:24][%cal Bf3d4,Bd4b5,Bb5c3][%mdl 32] Hoping for e5.} axb4 {[%emt 0:00:39]} 35. axb4 {[%emt 0:00:23]} Rcc8 {[%emt 0:02:47]} 36. Nb5 {[%emt 0:01:50]} Nhf8 {[%emt 0:00:43]} 37. Qb2 {[%emt 0:00:49]} Ng6 {[%emt 0:00:35]} (37... Ba6 $14) 38. Bf1 $16 {[%emt 0:01:37]} Qf8 {[%emt 0:00:52]} 39. Be3 {[%emt 0:02:40]} (39. Nh5 $16) 39... Ra4 {[%emt 0:05:31][%cal Od6d5]} 40. Nc3 {[%emt 0:01:53]} (40. Nh5 {keeps more tension.} d5 41. exd5 exd5 42. Bd4) 40... Raa8 {[%emt 0:00:02]} 41. Kh2 {[%emt 0:03:28]} Ba6 {[%emt 0:10:26]} 42. Qb3 {[%emt 0:02:23]} Qd8 {[%emt 0:01:28]} 43. Nb5 {[%emt 0:04:55] Inhibits Qc7.} Bxb5 {[%emt 0:01:55]} 44. cxb5 {[%emt 0:00:06]} Ngf8 {[%emt 0:02:59] [#]} (44... Bh4 $11 {remains equal.}) 45. Ne2 $1 {[%emt 0:04:02]} Nf6 {[%emt 0:02:27]} 46. Nc3 {[%emt 0:02:49]} Qc7 {[%emt 0:00:32]} 47. Rc1 {[%emt 0:00:19]} Qb7 {[%emt 0:00:13] Against Nd5} 48. Bd3 {[%emt 0:00:29]} N8d7 {[%emt 0:01:37]} 49. Bd4 {[%emt 0:04:26]} e5 {[%emt 0:01:51]} 50. fxe5 {[%emt 0:00:19]} Nxe5 {[%emt 0:00:05]} 51. Bxe5 {[%emt 0:00:42]} dxe5 {[%emt 0:00:02]} 52. Bc4 {[%emt 0:00:09]} Rf8 {[%emt 0:01:49]} (52... Kh8 $14) 53. Bd5 {[%emt 0:01:52]} Nxd5 {[%emt 0:01:02]} 54. Nxd5 {[%emt 0:00:02]} Bd8 {[%emt 0:02:31][%cal Be7d8,Bd8g5,Bg5f4][%mdl 32] Dodges Rc7. Black is weak on the light squares} 55. Rf1 {[%emt 0:01:10]} ({White should play} 55. Rc6 $16) 55... Rc8 $14 {[%emt 0:01:14]} 56. Rc4 {[%emt 0:01:13] White has more active pieces.} Bg5 {[%emt 0:01:20]} 57. Rc3 {[%emt 0:02:04]} Rxc3 {[%emt 0:02:39]} 58. Qxc3 {[%emt 0:00:01]} Bf4+ {[%emt 0:00:39]} 59. g3 {[%emt 0:00:16]} Bg5 {[%emt 0:00:04]} 60. h4 $36 {[%emt 0:02:16][%cal Bh3h4,Bh4g5,Bg5g6][%mdl 2080] Black is under strong pressure.} Rc8 $2 {[%emt 0:00:46][%mdl 8192] White has space advantage and is better} (60... Bd8 $16) 61. Qxe5 $18 {[%emt 0:01:17]} Rc2+ {[%emt 0:00:44]} 62. Kg1 {[%emt 0:00:28]} Qd7 {[%emt 0:00:05]} (62... Bf6 $142 63. Qe8+ (63. Nxf6+ gxf6 64. Rxf6 Qd7 $18) 63... Kh7 64. Nxf6+ gxf6 65. Rxf6 Rc1+ 66. Kf2 Rc2+ 67. Kf3 Kg7) 63. hxg5 {[%emt 0:01:04]} Qh3 {[%emt 0:00:06]} 64. Qe8+ {[%emt 0:00:45]} (64. Nxb6 $2 Qh2#) 64... Kh7 {[%emt 0:00:02][%csl Gh3][%cal Rc2g2]} 65. g6+ $1 {[%emt 0:00:05] White mates.} (65. Rxf7 $2 Qg2#) 65... fxg6 {[%emt 0:00:13] [#]} 66. Nf6+ $1 {[%emt 0:00:04]} gxf6 {[%emt 0:00:05]} 67. Qf7+ {[%emt 0:00:03]} Kh8 {[%emt 0:00:06]} 68. Qxf6+ {[%emt 0:00:05]} Kh7 {[%emt 0:00:06]} 69. Qe7+ {[%emt 0:00:04] Weighted Error Value: White=0.14 (very precise) /Black=0.26 (precise)   Loses game:     	---       	Black=1      Mistake:       	White=3     	Black=5      Inaccurate:     	White=9     	Black=9      OK:         	White=22    	Black=22     Best:        	White=5     	---        Strong:       	White=1     	---} 1-0

[Event "Reykjavik Open 2025"]
[Site "Reykjavik"]
[Date "2025.04.14"]
[Round "8.10"]
[White "Ruiz Buendia, Miguel"]
[Black "Jacobson, Brandon"]
[Result "0-1"]
[Annotator "TA"]
[ECO "C54"]
[WhiteElo "2353"]
[BlackElo "2570"]
[PlyCount "72"]
[EventDate "2025.04.09"]
[EventType "swiss"]
[EventCountry "ISL"]
[SourceTitle "playchess.com"]
[Source "ChessBase"]
[SourceQuality "1"]
[TimeControl "40/5400+30:1800+30"]

{[%evp 17,72,0,0,0,5,9,19,0,35,0,16,0,0,0,0,-24,3,2,12,31,21,17,5,0,0,0,0,0,0,0,0,0,0,-15,0,0,0,-164,-92,-191,-209,-262,-257,-3984,-3539,-2023,-1477,-5281,-5178,-2422,-2468,-2432,-2334,-6187,-5729,-1595,-1621]} 1. e4 {[%emt 0:00:05]} e5 {[%emt 0:01:10]} 2. Nf3 {[%emt 0:00:06]} Nc6 {[%emt 0:00:06]} 3. Bc4 {[%emt 0:00:07]} Bc5 {[%emt 0:02:15]} 4. c3 {[%emt 0:00:18]} Nf6 {[%emt 0:00:28]} 5. d4 {[%emt 0:00:15]} exd4 {[%emt 0:00:10]} 6. e5 {[%emt 0:00:09]} d5 {[%emt 0:00:31]} 7. Bb5 {[%emt 0:00:12]} Ne4 {[%emt 0:00:49]} 8. cxd4 {[%emt 0:00:22]} Bb6 {[%emt 0:00:08]} 9. Nc3 {[%emt 0:00:10]} O-O {[%emt 0:00:55]} 10. Be3 {[%emt 0:00:14] C54: Giuoco Piano: 4 c3 Nf6, main lines with 5 d4 and 5 d3.} Bd7 {[%emt 0:06:23]} 11. Bxc6 {[%emt 0:11:20]} (11. Nxd5 Ba5+ (11... Nxe5 12. Bxd7 Nxd7 13. O-O $11) 12. Kf1 Nxe5 13. Bxd7 Nxd7 $15) 11... Bxc6 {[%emt 0:00:22]} 12. O-O {[%emt 0:01:50] The position is equal.} f5 $146 {[%emt 0:06:01]} (12... Qd7 13. a4 Ba5 14. Ne2 f6 15. Nf4 Bb4 16. Nd3 Be7 17. b4 a6 18. Qb3 Kh8 {½-½ Nihal,S (2656)-Godena,M (2442) Cannes op 35th 2022 (7)}) 13. exf6 {[%emt 0:01:17]} Nxf6 {[%emt 0:03:34]} 14. a4 {[%emt 0:08:29] aiming for a5.} a5 {[%emt 0:02:44]} 15. Ne5 {[%emt 0:01:55]} Qd6 {[%emt 0:03:04]} 16. Nxc6 {[%emt 0:12:43]} bxc6 {[%emt 0:04:23]} 17. Rc1 {[%emt 0:01:40]} Rab8 {[%emt 0:06:20]} 18. h3 {[%emt 0:07:40]} Ba7 {[%emt 0:04:30]} 19. Rc2 {[%emt 0:07:49]} Qb4 {[%emt 0:21:09]} 20. Qd3 {[%emt 0:03:35]} Ne8 {[%emt 0:05:26][%cal Bf6e8,Be8d6,Bd6f5,Bf5e3][%mdl 32]} 21. b3 {[%emt 0:08:55]} Nd6 {[%emt 0:13:17]} 22. Rb1 {[%emt 0:02:38]} Nf5 {[%emt 0:01:39]} 23. Ne2 {[%emt 0:02:11]} Nxe3 {[%emt 0:01:31]} 24. fxe3 {[%emt 0:01:13]} Rf6 {[%emt 0:00:43]} 25. Rc3 {[%emt 0:04:09]} Re8 {[%emt 0:05:13]} 26. Rbc1 {[%emt 0:01:14]} Rfe6 {[%emt 0:01:05]} 27. Qc2 $2 {[%emt 0:10:14]} (27. Qf5 $1 $11 {and White is okay.}) 27... Qe7 {[%emt 0:01:16]} (27... Rxe3 28. Rxe3 Bxd4 (28... Rxe3 29. Qxc6 Qb8 30. Qxd5+ Kh8 31. Nf4 $16) 29. Kh1 (29. Nxd4 Qxd4 30. Kh1 Rxe3 $17) 29... Bxe3 (29... Rxe3 30. Qxc6 Kf8 31. Qa8+ Ke7 32. Qxd5 $14) 30. Qxc6 $15) (27... h6 $1 $19 28. Qd1 Bb6 (28... Rxe3 29. Rxe3 Rxe3 30. Rxc6 $19)) 28. Ng3 {[%emt 0:04:06] [#]} (28. Kh1 $17) 28... Qg5 $1 $19 {[%emt 0:03:55]} (28... Rxe3 29. Nf5 Re1+ 30. Kh2 $15) 29. Nf1 {[%emt 0:01:30] [#]} Bxd4 $1 {[%emt 0:00:22][%cal Re6e3] ...Rxe3 would now be deadly.} 30. Rxc6 $2 {[%emt 0:02:00] White is weak on the dark squares} (30. exd4 $2 {is the wrong capture.} Re2 31. Rg3 Rxc2 32. Rxc2 Qf4) (30. Rd3 Bb6 (30... Bxe3+ 31. Nxe3 Rxe3 32. Qxc6 $11) 31. Rcd1) 30... Rxe3 {[%emt 0:00:21] Black is clearly winning.} (30... Bxe3+ 31. Nxe3 Qxe3+ (31... Rxe3 32. Qd2 $15) 32. Qf2 $15) 31. Nxe3 {[%emt 0:00:55]} Bxe3+ {[%emt 0:00:05]} 32. Kh2 {[%emt 0:02:43]} Bf4+ {[%emt 0:00:05]} 33. Kg1 {[%emt 0:00:26]} Bxc1 {[%emt 0:00:15]} 34. Qxc1 {[%emt 0:00:10]} Qg3 {[%emt 0:00:04]} 35. Kf1 {[%emt 0:00:33] Wards off Re1+} Rf8+ {[%emt 0:00:03]} (35... Qxb3 36. Rxc7 Qxa4 37. Qc3 $15) 36. Kg1 {[%emt 0:00:27]} Rf2 {[%emt 0:00:05] Weighted Error Value: White=0.80/Black=0.05 (flawless)   Loses game:     	White=1     	---        Mistake:       	White=2     	Black=1      Inaccurate:     	White=1     	Black=2      OK:         	White=7     	Black=7      Best:        	White=1     	Black=2      Strong:       	---       	Black=2} ({Weaker is} 36... Qxb3 37. Rxc7 Qxa4 38. Qc3 $15) 0-1

[Event "Reykjavik Open 2025"]
[Site "Reykjavik"]
[Date "2025.04.14"]
[Round "8.11"]
[White "Ragnarsson, Dagur"]
[Black "Maze, Sebastien"]
[Result "0-1"]
[Annotator "RC"]
[ECO "B12"]
[WhiteElo "2352"]
[BlackElo "2557"]
[PlyCount "152"]
[EventDate "2025.04.09"]
[EventType "swiss"]
[EventCountry "ISL"]
[SourceTitle "playchess.com"]
[Source "ChessBase"]
[SourceQuality "1"]
[TimeControl "40/5400+30:1800+30"]

1. e4 {[%emt 0:00:04]} c6 {[%emt 0:00:29]} 2. d4 {[%emt 0:00:06]} d5 {[%emt 0:00:04]} 3. e5 {[%emt 0:00:21]} Bf5 {[%emt 0:00:24]} 4. c4 {[%emt 0:00:11]} e6 {[%emt 0:00:32]} 5. Nc3 {[%emt 0:00:10]} Ne7 {[%emt 0:00:38]} 6. h3 {[%emt 0:01:57]} h6 {[%emt 0:01:23]} 7. Nf3 {[%emt 0:02:19]} Nd7 {[%emt 0:01:48]} 8. b3 {[%emt 0:04:28]} Rc8 {[%emt 0:16:40]} 9. Be2 {[%emt 0:10:15]} Ng6 {[%emt 0:06:52]} 10. a3 {[%emt 0:11:47]} Nh4 {[%emt 0:10:49]} 11. Nxh4 {[%emt 0:10:49]} Qxh4 {[%emt 0:00:09]} 12. g3 {[%emt 0:00:11]} Qd8 {[%emt 0:00:16]} 13. c5 {[%emt 0:01:53]} Be7 {[%emt 0:05:39]} 14. h4 {[%emt 0:11:43]} O-O {[%emt 0:07:27]} 15. g4 {[%emt 0:02:40]} Bg6 {[%emt 0:00:01]} 16. g5 {[%emt 0:00:26]} hxg5 {[%emt 0:00:26]} 17. hxg5 {[%emt 0:00:11]} Bxg5 {[%emt 0:00:41]} 18. f4 {[%emt 0:03:29]} Bh6 {[%emt 0:01:48]} 19. Bd3 {[%emt 0:05:02]} Bxd3 {[%emt 0:00:58]} 20. Qxd3 {[%emt 0:00:05]} f5 {[%emt 0:02:13]} 21. Ra2 {[%emt 0:03:05]} Kf7 {[%emt 0:05:00]} 22. Rg2 {[%emt 0:04:30]} Rh8 {[%emt 0:04:23]} 23. Qg3 {[%emt 0:06:39]} Qf8 {[%emt 0:03:10]} 24. Ne2 {[%emt 0:00:22]} Ke7 {[%emt 0:01:49]} 25. Qh4+ {[%emt 0:05:27]} Ke8 {[%emt 0:00:02]} 26. Ng1 {[%emt 0:01:43]} Qe7 {[%emt 0:00:18]} 27. Qh5+ {[%emt 0:03:08]} Kd8 {[%emt 0:00:19]} 28. b4 {[%emt 0:00:56]} Kc7 {[%emt 0:03:27]} 29. Qe2 {[%emt 0:00:07]} Kb8 {[%emt 0:04:17]} 30. Rh3 {[%emt 0:01:03]} Qf7 {[%emt 0:00:50]} 31. a4 {[%emt 0:02:42]} Ka8 {[%emt 0:00:22]} 32. Nf3 {[%emt 0:01:14]} Rc7 {[%emt 0:03:35]} 33. Ng5 {[%emt 0:03:17]} Qe8 {[%emt 0:02:48]} 34. Rgh2 {[%emt 0:01:07]} Rg8 {[%emt 0:03:19]} 35. Nf3 {[%emt 0:00:28]} b6 {[%emt 0:00:38]} 36. Bd2 {[%emt 0:00:37]} Qb8 {[%emt 0:00:27]} 37. Rg2 {[%emt 0:00:38]} Re8 {[%emt 0:04:12]} 38. Rg6 {[%emt 0:02:33]} Rb7 {[%emt 0:00:38]} 39. Qa6 {[%emt 0:00:42]} bxc5 {[%emt 0:06:07]} 40. dxc5 {[%emt 0:00:31]} Rxb4 {[%emt 0:04:21]} 41. Qxc6+ {[%emt 0:14:20]} Qb7 {[%emt 0:00:29]} 42. Rxe6 {[%emt 0:00:52]} Qxc6 {[%emt 0:00:09]} 43. Rxc6 {[%emt 0:00:03]} Rc4 {[%emt 0:09:48]} 44. Rh5 {[%emt 0:03:24]} Nxc5 {[%emt 0:02:34]} 45. Rxc5 {[%emt 0:00:17]} Rxc5 {[%emt 0:00:05]} 46. Rxf5 {[%emt 0:00:03]} Rcc8 {[%emt 0:02:49]} 47. Nd4 {[%emt 0:03:04]} g6 {[%emt 0:06:22]} 48. Rf6 {[%emt 0:04:18]} Rf8 {[%emt 0:00:04]} 49. Rxf8 {[%emt 0:01:04]} Bxf8 {[%emt 0:00:27]} 50. a5 {[%emt 0:01:56]} Rc4 {[%emt 0:01:35]} 51. Ne6 {[%emt 0:00:12]} Be7 {[%emt 0:00:08]} 52. Ke2 {[%emt 0:00:11]} Kb7 {[%emt 0:00:32]} 53. Kd3 {[%emt 0:00:26]} a6 {[%emt 0:02:10]} 54. Nd4 {[%emt 0:00:25]} Bc5 {[%emt 0:01:23]} 55. Nf3 {[%emt 0:00:31]} Kc6 {[%emt 0:02:39]} 56. Ng5 {[%emt 0:03:21]} Be7 {[%emt 0:01:09]} 57. Nf3 {[%emt 0:00:08]} Kd7 {[%emt 0:00:21]} 58. Nd4 {[%emt 0:01:43]} Bc5 {[%emt 0:00:17]} 59. Nf3 {[%emt 0:00:50]} Bb4 {[%emt 0:02:22]} 60. Bxb4 {[%emt 0:01:13]} Rxb4 {[%emt 0:00:02]} 61. Nd4 {[%emt 0:00:07]} Ra4 {[%emt 0:00:35]} 62. Kc3 {[%emt 0:00:28]} Rc4+ {[%emt 0:02:30]} 63. Kd3 {[%emt 0:00:06]} Rc1 {[%emt 0:01:21]} 64. Nb3 {[%emt 0:00:35]} Rc4 {[%emt 0:00:38]} 65. Nd4 {[%emt 0:00:08]} Ke7 {[%emt 0:00:43]} 66. Ke3 {[%emt 0:00:15]} Rc3+ {[%emt 0:00:44]} 67. Kd2 {[%emt 0:00:14]} Ra3 {[%emt 0:00:15]} 68. Kc2 {[%emt 0:00:15]} Kf7 {[%emt 0:01:24]} 69. Nb3 {[%emt 0:02:19]} Ra4 {[%emt 0:00:10]} 70. Kd3 {[%emt 0:00:06]} Rxf4 {[%emt 0:00:09]} 71. Nc5 {[%emt 0:00:04]} g5 {[%emt 0:00:54]} 72. Nxa6 {[%emt 0:00:44]} Ke6 {[%emt 0:01:16]} 73. Nc5+ {[%emt 0:01:02]} Kxe5 {[%emt 0:00:05]} 74. a6 {[%emt 0:00:14]} Rf3+ {[%emt 0:00:44]} 75. Kc2 {[%emt 0:00:47]} Ra3 {[%emt 0:00:47]} 76. Kb2 {[%emt 0:00:28]} Ra5 {[%emt 0:00:06]} 0-1

[Event "Reykjavik Open 2025"]
[Site "Reykjavik"]
[Date "2025.04.14"]
[Round "8.12"]
[White "Friedel, Joshua"]
[Black "Li, Guohao"]
[Result "1-0"]
[Annotator "TA"]
[ECO "E94"]
[WhiteElo "2552"]
[BlackElo "2356"]
[PlyCount "71"]
[EventDate "2025.04.09"]
[EventType "swiss"]
[EventCountry "ISL"]
[SourceTitle "playchess.com"]
[Source "ChessBase"]
[SourceQuality "1"]
[TimeControl "40/5400+30:1800+30"]

{[%evp 19,71,26,31,41,36,10,12,0,0,-8,20,17,22,26,23,24,23,25,22,25,22,21,25,0,0,-7,-10,0,0,-16,21,18,18,16,16,21,85,89,80,81,104,126,176,111,128,8,373,362,734,664,1053,1018,993,955]} 1. c4 {[%emt 0:00:02]} d6 {[%emt 0:00:08]} 2. d4 {[%emt 0:02:26]} e5 {[%emt 0:00:10]} 3. Nc3 {[%emt 0:02:31]} Nd7 {[%emt 0:00:33]} 4. Nf3 {[%emt 0:00:50]} Ngf6 {[%emt 0:00:15]} 5. e4 {[%emt 0:00:55]} g6 {[%emt 0:00:29]} 6. Be2 {[%emt 0:01:06]} Bg7 {[%emt 0:00:07]} 7. O-O {[%emt 0:00:06]} O-O {[%emt 0:00:07]} 8. Qc2 {[%emt 0:07:27]} exd4 {[%emt 0:00:51]} 9. Nxd4 {[%emt 0:00:06]} Re8 {[%emt 0:00:18]} 10. Rd1 {[%emt 0:01:12]} c6 {[%emt 0:01:34]} 11. Bf4 {[%emt 0:05:04] E94: King's Indian: Classical: 6 Be2 e5 7 0-0: Various Black 7th moves.} Nc5 {[%emt 0:02:11]} 12. Bf3 $146 {[%emt 0:01:45]} (12. f3 Nh5 13. Be3 Qe7 14. b4 Ne6 15. Qd2 Nhf4 16. Bf1 Nxd4 17. Bxd4 Be5 18. Rac1 Ne6 {0-1 Lobo,R (2262)-Naroditsky,D (2419) Berkeley op 2011 (3)}) 12... Bg4 {[%emt 0:00:06]} 13. Bxg4 {[%emt 0:02:56] The position is equal.} (13. e5 {seems wilder.} dxe5 14. Nxc6 Qb6 15. Nxe5 Bf5 16. Qc1) 13... Nxg4 {[%emt 0:00:04]} 14. Bg3 {[%emt 0:07:31]} Nf6 {[%emt 0:01:29]} 15. f3 {[%emt 0:03:42]} Nh5 {[%emt 0:00:27]} 16. Bf2 {[%emt 0:01:22][%cal Od4c6]} Qe7 {[%emt 0:02:36]} 17. Rab1 {[%emt 0:07:58]} a6 {[%emt 0:02:40]} 18. b4 {[%emt 0:05:00]} Ne6 {[%emt 0:00:40]} 19. Nxe6 {[%emt 0:03:02]} Qxe6 {[%emt 0:00:12]} 20. Ne2 {[%emt 0:00:32][%cal Bc3e2,Be2f4,Bf4h3,Bh3g5,Bg5e6][%mdl 32]} Rad8 {[%emt 0:05:18]} 21. g4 {[%emt 0:05:59]} Nf6 {[%emt 0:00:27]} 22. Bg3 {[%emt 0:00:34]} h5 {[%emt 0:06:01]} 23. h3 {[%emt 0:13:26]} hxg4 {[%emt 0:01:48]} 24. hxg4 {[%emt 0:00:07]} Nxg4 {[%emt 0:14:50]} 25. Nf4 $1 {[%emt 0:00:55]} (25. fxg4 Qxg4 26. Rd3 Rxe4 $19) 25... Qc8 {[%emt 0:00:01]} 26. fxg4 {[%emt 0:00:41]} Qxg4 {[%emt 0:00:03]} 27. Qg2 {[%emt 0:02:56]} g5 {[%emt 0:11:45]} (27... Rd7 $11) 28. Nh3 $1 $16 {[%emt 0:00:56]} Qxe4 {[%emt 0:00:12]} (28... Rxe4 $2 29. Nf2 $18) 29. Nxg5 {[%emt 0:03:50]} (29. Bxd6 Bd4+ (29... Qxc4 30. Nxg5 Re2 31. Qg3 $16) (29... Rxd6 $2 30. Qxe4 Rxd1+ 31. Rxd1 $19) 30. Kh1 Rxd6 $19) 29... Qg4 {[%emt 0:14:43]} 30. Bf2 {[%emt 0:02:34]} (30. Bxd6 $6 Bd4+ (30... Qxc4 $2 31. Bc5 $18) 31. Rxd4 Qxd4+ 32. Kh1 Qh4+ (32... Qxd6 33. Ne6+) 33. Nh3+ Kh8 $11) 30... Qxc4 {[%emt 0:00:30] [#]} (30... Qxg2+ $16 31. Kxg2 Bh6) 31. Re1 {[%emt 0:04:50]} ({White should play} 31. Rb3 $1 $18 {[%cal Rb3g3]}) 31... Qxa2 {[%emt 0:03:53] [#]} 32. Qg4 {[%emt 0:02:47]} (32. Rbd1 $1 $16) 32... f6 $2 {[%emt 0:14:09][%mdl 8192] This costs Black the game.} (32... Qc2 $1 $11 {and Black is okay.}) 33. Ne6 $18 {[%emt 0:01:43][%csl Ge6][%cal Rg4g7]} Rd7 {[%emt 0:00:01]} (33... Rxe6 34. Qxe6+ Qxe6 35. Rxe6 Kf7) 34. Nd4 {[%emt 0:01:18][%csl LRd7,LRe8] White is clearly winning.} Re5 {[%emt 0:04:59] and ...Rg5 would now be decisive} 35. Qxd7 {[%emt 0:00:51]} Rg5+ {[%emt 0:00:06]} 36. Kf1 {[%emt 0:00:13] Weighted Error Value: White=0.13 (very precise) /Black=0.77  Loses game:     	---       	Black=1      Mistake:       	White=2     	Black=3      Inaccurate:     	White=1     	Black=3      OK:         	White=7     	Black=7      Best:        	White=1     	Black=1      Strong:       	White=2     	---} 1-0

[Event "Reykjavik Open 2025"]
[Site "Reykjavik"]
[Date "2025.04.14"]
[Round "8.13"]
[White "Papp, Gabor"]
[Black "Migot, Tangi"]
[Result "1-0"]
[Annotator "RC"]
[ECO "C55"]
[WhiteElo "2502"]
[BlackElo "2347"]
[PlyCount "83"]
[EventDate "2025.04.09"]
[EventType "swiss"]
[EventCountry "ISL"]
[SourceTitle "playchess.com"]
[Source "ChessBase"]
[SourceQuality "1"]
[TimeControl "40/5400+30:1800+30"]

1. e4 {[%emt 0:00:03]} e5 {[%emt 0:00:11]} 2. Nf3 {[%emt 0:00:06]} Nc6 {[%emt 0:00:06]} 3. Bc4 {[%emt 0:00:06]} Nf6 {[%emt 0:00:09]} 4. d3 {[%emt 0:00:05]} Be7 {[%emt 0:00:19]} 5. O-O {[%emt 0:00:16]} O-O {[%emt 0:00:19]} 6. Re1 {[%emt 0:00:19]} d6 {[%emt 0:00:21]} 7. a4 {[%emt 0:00:06]} Be6 {[%emt 0:01:34]} 8. Bxe6 {[%emt 0:00:40]} fxe6 {[%emt 0:00:07]} 9. Nbd2 {[%emt 0:00:08]} a5 {[%emt 0:01:53]} 10. c3 {[%emt 0:00:24]} Qe8 {[%emt 0:05:49]} 11. Qb3 {[%emt 0:06:02]} Nd8 {[%emt 0:00:44]} 12. d4 {[%emt 0:01:36]} exd4 {[%emt 0:06:22]} 13. Nxd4 {[%emt 0:01:03]} Qf7 {[%emt 0:02:07]} 14. N2f3 {[%emt 0:01:29]} Nd7 {[%emt 0:04:39]} 15. Qc2 {[%emt 0:02:05]} Qg6 {[%emt 0:06:05]} 16. Qe2 {[%emt 0:00:27]} c6 {[%emt 0:11:52]} 17. b3 {[%emt 0:10:08]} Nf7 {[%emt 0:04:04]} 18. Ba3 {[%emt 0:00:51]} Rfe8 {[%emt 0:12:40]} 19. Rad1 {[%emt 0:02:20]} Bf8 {[%emt 0:04:34]} 20. c4 {[%emt 0:13:16]} Rad8 {[%emt 0:05:14]} 21. h3 {[%emt 0:03:58]} d5 {[%emt 0:05:33]} 22. Bxf8 {[%emt 0:00:34]} Nxf8 {[%emt 0:00:39]} 23. exd5 {[%emt 0:00:06]} cxd5 {[%emt 0:00:13]} 24. Nb5 {[%emt 0:05:22]} dxc4 {[%emt 0:02:23]} 25. Qxc4 {[%emt 0:01:14]} Rc8 {[%emt 0:02:15]} 26. Qf4 {[%emt 0:05:35]} Qf5 {[%emt 0:03:28]} 27. Qxf5 {[%emt 0:06:47]} exf5 {[%emt 0:00:04]} 28. Rxe8 {[%emt 0:00:03]} Rxe8 {[%emt 0:00:05]} 29. Rd5 {[%emt 0:00:03]} g6 {[%emt 0:03:15]} 30. Na3 {[%emt 0:00:04]} b6 {[%emt 0:02:23]} 31. Nc4 {[%emt 0:00:04]} Re6 {[%emt 0:00:21]} 32. Nd4 {[%emt 0:00:23]} Rf6 {[%emt 0:05:09]} 33. f4 {[%emt 0:00:24]} Kg7 {[%emt 0:02:11]} 34. Kf2 {[%emt 0:00:21]} Nh6 {[%emt 0:05:05]} 35. Kf3 {[%emt 0:09:07]} Ng8 {[%emt 0:02:51]} 36. Nd6 {[%emt 0:11:48]} Kh8 {[%emt 0:00:26]} 37. Nc8 {[%emt 0:00:19]} Kg7 {[%emt 0:00:54]} 38. Rd8 {[%emt 0:05:27]} Kf7 {[%emt 0:02:27]} 39. Nd6+ {[%emt 0:01:29]} Ke7 {[%emt 0:00:05]} 40. Nc6+ {[%emt 0:00:06]} Ke6 {[%emt 0:00:05]} 41. Ne8 {[%emt 0:30:29]} Rf7 {[%emt 0:30:55]} 42. Rd6# {[%emt 0:00:09]} 1-0